bitfinex/quotes_SOLUSD_20260109
["timestamp","ask_amount","ask_price","bid_price","bid_amount"]
[1767965793190,11.56568121,138.91,138.87,7.87902229]
[1767965793690,11.56568121,138.91,138.85,0.67805573]
[1767965793691,11.56568121,138.89,138.85,0.67805573]
[1767965793997,11.56568121,138.92,138.88,0.67805573]
[1767965794178,0.56521848,138.93,138.88,11.56568121]
[1767965794518,0.56992776,138.94,138.88,0.67805573]
[1767965794705,0.56992776,138.94,138.89,11.56568121]
[1767965795074,0.56992776,138.94,138.9,7.19942404]
[1767965795897,0.099,138.93,138.89,7.19974804]
[1767965796098,13.14,138.95,138.9,12.24373694]
[1767965796299,24.70568121,138.95,138.9,12.24373694]
[1767965796590,31.90262989,138.95,138.9,0.67805573]
[1767965796990,18.76322339,138.94,138.89,12.24373694]
[1767965797293,11.56568121,138.93,138.89,0.67805573]
[1767965797697,11.56568121,138.94,138.89,19.44365955]
[1767965797878,20.43592208,138.95,138.89,19.44365955]
[1767965797879,32.00160329,138.95,138.9,12.24373694]
[1767965798493,32.00160329,138.95,138.9,0.67805573]
[1767965798896,24.80468121,138.95,138.9,12.24373694]
[1767965799077,32.00152345,138.95,138.9,7.87727565]
[1767965799590,13.14,138.95,138.91,0.67805573]
[1767965799787,24.70568121,138.95,138.91,0.67805573]
[1767965800278,31.9025348,138.95,138.91,0.67805573]
[1767965800483,11.56568121,138.94,138.89,7.8778283]
[1767965800703,11.56568121,138.94,138.89,19.44350951]
[1767965801784,20.33685359,138.95,138.9,0.67805573]
[1767965802303,13.70521848,138.95,138.9,0.67805573]
[1767965802499,13.14,138.95,138.9,19.44292969]
[1767965802702,24.70568121,138.95,138.9,19.44292969]
[1767965803412,13.14,138.95,138.92,0.67805573]
[1767965804897,24.70568121,138.95,138.91,7.19850994]
[1767965805082,31.90262697,138.95,138.9,19.44304709]
[1767965807511,20.33694576,138.95,138.9,19.44304709]
[1767965807807,31.90262697,138.95,138.9,19.44304709]
[1767965808180,13.14,138.95,138.91,7.89718933]
[1767965808404,24.70568121,138.95,138.91,7.89718933]
[1767965808702,310.16992776,139.02,138.95,0.69828474]
[1767965808890,0.10366218,138.99,138.95,11.56568121]
[1767965809093,186.43388507,139.01,138.95,0.69828474]
[1767965809094,11.56568121,139.0,138.95,0.69828474]
[1767965809296,11.56568121,139.0,138.95,12.26396595]
[1767965809497,11.66468121,139.0,138.95,12.26396595]
[1767965809699,11.56568121,138.99,138.95,0.69828474]
[1767965810599,7.29350308,139.0,138.95,7.89504338]
[1767965810795,7.29350308,139.0,138.95,19.46072459]
[1767965810994,18.85918429,139.0,138.95,19.46072459]
[1767965811708,13.14,139.01,138.97,0.69828474]
[1767965812105,13.14,139.01,138.98,0.69828474]
[1767965812301,13.14,139.01,138.99,7.89304695]
[1767965812497,11.56568121,139.03,138.99,7.89304695]
[1767965812907,11.56568121,139.03,138.99,0.69828474]
[1767965813082,20.31232718,139.04,138.99,0.69828474]
[1767965813286,13.12,139.04,139.0,0.69828474]
[1767965813495,24.68568121,139.04,139.0,0.69828474]
[1767965813810,11.56568121,139.05,139.0,0.69828474]
[1767965814013,11.56568121,139.05,139.01,0.69828474]
[1767965814491,11.56568121,139.04,139.01,0.69828474]
[1767965814805,11.56568121,139.04,138.99,0.69828474]
[1767965814806,11.56568121,139.02,138.99,0.69828474]
[1767965814993,11.56568121,139.01,138.98,0.69828474]
[1767965815802,11.56568121,139.0,138.96,7.89447603]
[1767965816407,11.56568121,139.01,138.96,19.46015724]
[1767965816708,13.12,139.01,138.98,0.69828474]
[1767965817031,13.12,139.01,138.96,7.19619129]
[1767965817032,0.56992776,139.06,138.99,0.69828474]
[1767965817189,4.35353385,139.03,138.99,0.69828474]
[1767965818007,13.12,139.05,138.99,0.69828474]
[1767965818195,4.35353385,139.03,138.99,0.69828474]
[1767965818395,4.35353385,139.03,139.0,7.1942446]
[1767965818604,24.66586119,139.05,139.01,0.69828474]
[1767965818911,13.12,139.05,139.01,0.69828474]
[1767965819109,11.54586119,139.04,139.01,0.69828474]
[1767965819608,5.10592257,139.09,139.0,7.1942446]
[1767965819609,0.66992776,139.1,139.04,0.69828474]
[1767965819906,11.54586119,139.07,139.02,12.24414593]
[1767965820112,11.54586119,139.07,139.03,0.69828474]
[1767965820488,11.54586119,139.07,139.03,7.89066036]
[1767965820710,7.28892481,139.09,139.03,7.89066036]
[1767965820917,7.28892481,139.09,139.04,0.69828474]
[1767965821117,11.54586119,139.06,139.04,0.69828474]
[1767965821293,11.54586119,139.05,139.0,0.69828474]
[1767965821608,11.54586119,139.01,138.99,7.89270037]
[1767965821810,11.54586119,139.01,138.99,0.69828474]
[1767965822002,11.54586119,139.01,138.99,7.89301204]
[1767965822606,11.54586119,139.01,138.99,0.69828474]
[1767965822808,11.54586119,139.0,138.97,7.86630506]
[1767965822998,11.54586119,138.99,138.97,0.67078874]
[1767965823199,11.54586119,139.0,138.98,0.67078874]
[1767965823394,13.12,139.03,138.99,7.86555095]
[1767965823627,13.12,139.03,139.0,0.67078874]
[1767965823914,11.54586119,139.03,139.0,0.67078874]
[1767965824115,11.54586119,139.02,139.0,0.67078874]
[1767965824697,11.54586119,139.03,139.0,7.86472088]
[1767965824907,11.54586119,139.03,139.0,7.19393214]
[1767965825110,11.54586119,139.02,139.0,7.19393214]
[1767965825796,11.54586119,139.02,138.99,0.67078874]
[1767965826094,11.54586119,139.0,138.97,0.67078874]
[1767965826307,11.54586119,138.99,138.97,0.67078874]
[1767965826827,11.65409278,138.98,138.94,7.19712585]
[1767965827001,11.65409278,138.98,138.95,7.19682347]
[1767965827201,11.54586119,138.97,138.93,0.67078874]
[1767965827601,11.54586119,138.96,138.92,7.19836465]
[1767965827808,11.54586119,138.95,138.92,7.19836465]
[1767965828101,11.54586119,138.96,138.92,7.19836465]
[1767965828415,11.54586119,138.95,138.91,7.86951376]
[1767965828719,11.54586119,138.96,138.91,37.41263936]
[1767965828918,0.5560792,138.97,138.92,0.67078874]
[1767965829107,12.10194039,138.97,138.92,12.21664993]
[1767965829419,11.54586119,138.97,138.93,0.67078874]
[1767965829623,11.54586119,138.99,138.95,0.67078874]
[1767965829816,0.56521848,138.99,138.94,0.67078874]
[1767965830009,11.54586119,138.99,138.96,0.67078874]
[1767965830201,13.68992776,139.02,138.96,0.67078874]
[1767965830408,11.54586119,139.01,138.97,0.67078874]
[1767965830605,11.54586119,139.0,138.97,0.67078874]
[1767965831492,11.54586119,138.99,138.95,0.67078874]
[1767965831896,11.54586119,138.99,138.95,7.86761515]
[1767965832098,11.54586119,138.99,138.96,0.67078874]
[1767965832933,18.74013493,139.0,138.96,0.67078874]
[1767965833300,13.12,139.02,138.97,0.67078874]
[1767965833523,13.12,139.02,138.98,0.67078874]
[1767965834114,13.12,139.02,138.99,0.67078874]
[1767965834339,18.07738662,139.06,139.0,0.67078874]
[1767965834501,11.54586119,139.03,139.0,0.67078874]
[1767965835006,11.54586119,139.03,138.98,12.21664993]
[1767965835207,38.85602034,139.05,138.98,0.67078874]
[1767965835405,11.54586119,139.01,138.98,0.67078874]
[1767965835607,18.73877792,139.03,138.98,12.21664993]
[1767965835804,11.54586119,139.02,138.98,7.86605359]
[1767965836011,11.54586119,139.02,138.98,0.67078874]
[1767965836400,11.54586119,139.0,138.96,0.67078874]
[1767965836621,11.54586119,138.99,138.96,0.67078874]
[1767965836922,11.54586119,138.99,138.95,0.67078874]
[1767965837125,11.54586119,138.99,138.95,7.86734301]
[1767965837304,11.54586119,138.98,138.95,0.67078874]
[1767965837501,11.54586119,138.98,138.93,7.86832613]
[1767965837707,11.54586119,138.97,138.93,0.67078874]
[1767965837909,11.54586119,138.95,138.93,0.67078874]
[1767965838118,13.12,138.96,138.91,0.67078874]
[1767965838423,11.54586119,138.95,138.91,7.869532]
[1767965839121,24.66586119,138.96,138.91,7.869532]
[1767965839322,24.66586119,138.96,138.92,0.67078874]
[1767965839550,20.31633065,138.96,138.92,0.67078874]
[1767965839827,11.54586119,138.94,138.9,0.67078874]
[1767965840204,11.54586119,138.93,138.9,0.67078874]
[1767965840513,0.56521848,138.95,138.91,7.19859362]
[1767965840715,31.86221619,138.96,138.92,0.67078874]
[1767965840914,11.54586119,138.95,138.92,0.67078874]
[1767965841319,11.54586119,138.94,138.9,7.8700831]
[1767965841711,20.31653074,138.96,138.91,0.67078874]
[1767965841912,11.54586119,138.95,138.91,0.67078874]
[1767965842126,20.31653074,138.96,138.91,0.67078874]
[1767965842325,31.86239193,138.96,138.91,0.67078874]
[1767965842528,31.86239193,138.96,138.91,12.21664993]
[1767965842713,24.66586119,138.96,138.91,12.21664993]
[1767965843209,13.12,138.96,138.91,12.21664993]
[1767965843422,24.66586119,138.96,138.92,0.67078874]
[1767965843609,13.12,138.96,138.93,0.67078874]
[1767965844316,11.54586119,138.97,138.93,0.67078874]
[1767965844522,18.74183619,138.97,138.93,0.67078874]
[1767965844710,11.54586119,138.96,138.93,0.67078874]
[1767965845111,11.54586119,138.95,138.93,0.67078874]
[1767965845312,11.54586119,138.96,138.93,0.67078874]
[1767965845708,18.74224988,138.96,138.93,0.67078874]
[1767965846332,7.19638869,138.96,138.93,0.67078874]
[1767965846629,18.74224988,138.96,138.93,0.67078874]
[1767965846931,11.54586119,138.94,138.91,0.67078874]
[1767965847135,20.42005087,138.96,138.91,0.67078874]
[1767965847315,11.54586119,138.93,138.91,0.67078874]
[1767965847515,0.56060292,138.95,138.89,0.67078874]
[1767965847727,11.54586119,138.93,138.89,7.87061005]
[1767965847924,13.68060292,138.96,138.9,0.67078874]
[1767965848129,11.65409278,138.95,138.9,12.21664993]
[1767965848430,13.12,138.96,138.87,13.12]
[1767965848431,11.54586119,138.93,138.88,7.20016791]
[1767965848736,0.5560792,138.94,138.88,7.20016791]
[1767965848737,11.54586119,138.92,138.88,7.20016791]
[1767965848922,11.5158612,138.92,138.88,7.20016791]
[1767965849933,7.31076944,138.93,138.87,19.41743785]
[1767965850128,7.19756261,138.94,138.88,12.21664993]
[1767965850334,11.54586119,138.93,138.88,12.21664993]
[1767965850831,11.5158612,138.93,138.88,0.67078874]
[1767965851015,11.54586119,138.94,138.89,12.21664993]
[1767965851416,20.88659876,138.96,138.91,0.67078874]
[1767965851417,11.54586119,138.95,138.91,0.67078874]
[1767965851622,20.88659876,138.96,138.87,38.32323625]
[1767965851623,20.88659876,138.96,138.89,0.67078874]
[1767965851834,11.54586119,138.94,138.9,7.19920403]
[1767965852225,7.29594761,138.95,138.89,19.41640685]
[1767965852429,11.54586119,138.94,138.89,19.41640685]
[1767965852935,11.54586119,138.94,138.9,7.19941713]
[1767965854020,7.29594761,138.95,138.9,7.19941713]
[1767965854442,11.54586119,138.94,138.9,7.19941713]
[1767965854718,7.11391894,138.93,138.89,7.87058729]
[1767965854950,0.56521848,138.94,138.89,7.87058729]
[1767965855227,7.11391894,138.93,138.9,0.66061996]
[1767965855817,7.11391894,138.93,138.9,7.86003313]
[1767965856144,7.19694761,138.95,138.9,7.86003313]
[1767965856344,7.21758112,138.93,138.87,0.66061996]
[1767965856551,7.22215053,138.89,138.86,7.20105186]
[1767965856837,7.11391894,138.9,138.86,7.86167182]
[1767965857135,20.23391894,138.92,138.87,7.7745389]
[1767965857717,7.11391894,138.93,138.88,14.97499972]
[1767965858058,20.25391894,138.94,138.89,7.7745389]
[1767965858426,20.25391894,138.94,138.89,0.66061996]
[1767965858619,7.11391894,138.93,138.89,0.66061996]
[1767965859822,7.11391894,138.93,138.89,7.8602381]
[1767965860352,7.11391894,138.92,138.89,0.66061996]
[1767965860523,7.11391894,138.92,138.89,7.8605513]
[1767965862143,7.19789347,138.93,138.89,7.19993134]
[1767965862144,7.11391894,138.93,138.89,7.19993134]
[1767965862652,13.239,138.94,138.89,7.19993134]
[1767965862949,20.25391894,138.94,138.9,0.66061996]
[1767965864553,7.11391894,138.93,138.9,7.8599464]
[1767965864743,7.11391894,138.93,138.88,0.66061996]
[1767965864945,7.11391894,138.92,138.89,7.86035278]
[1767965865645,7.11391894,138.91,138.88,7.20025007]
[1767965865847,7.11391894,138.89,138.85,0.66061996]
[1767965866430,13.14,138.91,138.85,0.66061996]
[1767965866631,7.11391894,138.89,138.87,0.66061996]
[1767965867641,7.11391894,138.89,138.85,7.86785731]
[1767965867839,13.14,138.91,138.85,0.6660835]
[1767965868039,7.11391894,138.9,138.86,0.6660835]
[1767965868242,7.11391894,138.88,138.81,0.80824507]
[1767965868555,7.11391894,138.85,138.82,0.6660835]
[1767965869565,7.11391894,138.84,138.82,0.6660835]
[1767965869750,7.30837926,138.87,138.81,0.6660835]
[1767965870050,0.50640506,138.86,138.81,0.6660835]
[1767965870355,7.11391894,138.85,138.81,0.6660835]
[1767965870647,7.08391894,138.85,138.82,7.86955631]
[1767965870855,13.14,138.87,138.82,7.86955631]
[1767965871055,20.25391894,138.87,138.83,0.6660835]
[1767965872039,7.11391894,138.87,138.83,0.6660835]
[1767965872554,7.11391894,138.87,138.82,25.87848874]
[1767965872754,7.62435609,138.87,138.82,25.87848874]
[1767965873057,7.11391894,138.86,138.82,25.21240524]
[1767965873650,7.22114727,138.86,138.82,25.21240524]
[1767965873956,7.22114727,138.86,138.82,7.20347281]
[1767965874152,7.20047939,138.88,138.83,0.6660835]
[1767965874153,7.11391894,138.85,138.83,0.6660835]
[1767965874656,7.7154183,138.88,138.83,0.6660835]
[1767965874858,7.11391894,138.86,138.83,0.6660835]
[1767965875859,7.20098281,138.87,138.83,0.6660835]
[1767965876162,7.11391894,138.86,138.83,0.6660835]
[1767965876362,7.11391894,138.86,138.84,0.6660835]
[1767965877256,7.11391894,138.85,138.82,7.86956914]
[1767965877442,7.11391894,138.85,138.82,0.6660835]
[1767965877766,7.11391894,138.84,138.82,0.6660835]
[1767965878452,7.11391894,138.83,138.8,62.7660835]
[1767965878661,20.85220569,138.86,138.8,0.2]
[1767965878662,7.11391894,138.82,138.8,0.2]
[1767965879042,7.11391894,138.83,138.8,0.2]
[1767965879766,20.25391894,138.85,138.82,0.6660835]
[1767965880651,20.25391894,138.85,138.8,0.2]
[1767965880652,2.79230362,138.83,138.8,0.2]
[1767965880857,2.79230362,138.82,138.8,0.2]
[1767965881368,2.79230362,138.83,138.8,0.2]
[1767965881867,7.30570824,138.84,138.8,0.2]
[1767965882044,2.79230362,138.82,138.8,0.2]
[1767965882945,2.79230362,138.81,138.8,0.2]
[1767965886853,2.79230362,138.81,138.79,0.6660835]
[1767965887049,2.79230362,138.81,138.78,7.89535694]
[1767965887253,2.79230362,138.81,138.76,18.21618447]
[1767965887254,2.79230362,138.8,138.77,7.2060951]
[1767965887467,2.79230362,138.8,138.77,7.89583706]
[1767965888172,2.79230362,138.8,138.78,0.68974196]
[1767965888960,2.79230362,138.8,138.76,0.88974196]
[1767965888961,2.90352372,138.8,138.76,0.88974196]
[1767965889159,0.50245321,138.79,138.76,0.2]
[1767965889365,2.79230362,138.78,138.76,0.2]
[1767965890169,7.2062573,138.77,138.74,0.2]
[1767965890387,20.34519488,138.79,138.74,8.09724808]
[1767965890670,2.79230362,138.77,138.74,8.09724808]
[1767965890870,2.79230362,138.77,138.74,0.88974196]
[1767965891278,2.79230362,138.77,138.74,8.09738502]
[1767965892158,13.14,138.79,138.76,0.68974196]
[1767965892364,15.93230362,138.79,138.76,0.68974196]
[1767965893357,2.79230362,138.78,138.76,0.68974196]
[1767965893673,2.79230362,138.8,138.78,0.68974196]
[1767965894050,2.79230362,138.81,138.78,0.68974196]
[1767965894269,2.79230362,138.81,138.77,7.20587333]
[1767965894466,2.79230362,138.8,138.77,7.20587333]
[1767965894678,2.79230362,138.8,138.78,7.20560621]
[1767965894864,2.79230362,138.8,138.77,7.89569625]
[1767965895458,2.79230362,138.8,138.77,7.89548768]
[1767965895758,2.79230362,138.79,138.76,7.20636496]
[1767965896060,2.79230362,138.79,138.76,7.89610692]
[1767965896781,2.79230362,138.8,138.76,7.89610692]
[1767965896953,2.79230362,138.79,138.76,7.89610692]
[1767965897655,3.44545685,138.81,138.76,7.89610692]
[1767965897965,3.44545685,138.81,138.77,0.68974196]
[1767965898166,20.34375718,138.82,138.78,0.68974196]
[1767965898167,15.93230362,138.82,138.78,0.68974196]
[1767965898372,13.14,138.82,138.78,0.68974196]
[1767965898763,0.65315323,138.81,138.77,2.79230362]
[1767965898969,0.65315323,138.81,138.76,25.91282643]
[1767965899282,3.44545685,138.81,138.76,28.70513005]
[1767965899480,2.79230362,138.81,138.77,0.68974196]
[1767965899657,13.14,138.82,138.79,0.68974196]
[1767965899658,15.93230362,138.82,138.79,0.68974196]
[1767965900984,2.79230362,138.82,138.79,7.89451082]
[1767965901573,2.79230362,138.8,138.78,7.20539798]
[1767965901971,2.79230362,138.79,138.78,7.20539798]
[1767965902282,2.79230362,138.8,138.78,7.20539798]
[1767965902794,2.79230362,138.8,138.79,7.20513005]
[1767965903580,2.79230362,138.81,138.78,7.20564922]
[1767965903762,3.44545685,138.82,138.78,7.89539118]
[1767965903962,2.79230362,138.79,138.77,7.20601807]
[1767965904280,0.65315323,138.8,138.76,7.89612115]
[1767965904462,2.79230362,138.79,138.76,7.89612115]
[1767965905566,2.79230362,138.79,138.77,7.20610229]
[1767965906082,0.65315323,138.8,138.76,7.20644988]
[1767965906285,2.79230362,138.79,138.76,7.20644988]
[1767965906785,2.79230362,138.78,138.76,7.20644988]
[1767965906974,2.76230363,138.78,138.76,7.20644988]
[1767965907466,0.65315323,138.79,138.77,0.68974196]
[1767965907467,2.79230362,138.79,138.77,0.68974196]
[1767965907674,2.79230362,138.8,138.77,0.68974196]
[1767965908264,15.93230362,138.81,138.77,0.68974196]
[1767965909787,15.93230362,138.81,138.78,7.89539118]
[1767965910773,0.65315323,138.8,138.77,7.20601368]
[1767965910998,13.79315323,138.81,138.77,7.89575564]
[1767965911175,2.79230362,138.79,138.77,7.89575564]
[1767965911492,2.79230362,138.8,138.77,7.89575564]
[1767965912573,2.79230362,138.79,138.77,7.89575564]
[1767965912782,2.79230362,138.79,138.77,0.68974196]
[1767965913584,2.79230362,138.78,138.76,7.2064449]
[1767965914573,2.79230362,138.77,138.75,7.2070044]
[1767965914776,2.79230362,138.77,138.72,64.69230362]
[1767965914777,3.47539444,138.76,138.72,7.20837847]
[1767965915074,0.68309082,138.76,138.71,7.88141206]
[1767965915280,2.79230362,138.74,138.71,7.88141206]
[1767965915483,2.79230362,138.72,138.7,7.2095877]
[1767965915696,2.79230362,138.71,138.68,0.2]
[1767965915876,2.79230362,138.69,138.66,14.89071393]
[1767965916081,2.79230362,138.7,138.67,0.6722158]
[1767965916284,2.79230362,138.7,138.68,0.6722158]
[1767965916490,4.37276664,138.69,138.66,15.56292973]
[1767965916667,4.37276664,138.68,138.66,15.56292973]
[1767965916866,4.34276665,138.68,138.66,22.77472096]
[1767965917690,4.37276664,138.69,138.66,22.10250516]
[1767965918590,0.72133779,138.71,138.66,22.77472096]
[1767965918896,4.37276664,138.7,138.66,22.77472096]
[1767965919095,4.37276664,138.69,138.66,22.77472096]
[1767965919296,4.37276664,138.7,138.66,22.77472096]
[1767965919495,4.37276664,138.7,138.67,0.6722158]
[1767965920493,4.37276664,138.7,138.67,7.88321868]
[1767965921207,4.65708978,138.74,138.68,0.6722158]
[1767965921208,4.37276664,138.71,138.68,0.6722158]
[1767965922009,7.92834507,138.76,138.69,0.6722158]
[1767965922170,4.37276664,138.74,138.7,0.6722158]
[1767965922574,4.37276664,138.73,138.7,7.88190142]
[1767965922782,4.37276664,138.72,138.7,0.6722158]
[1767965923689,4.37276664,138.72,138.7,7.88201742]
[1767965924002,4.37276664,138.73,138.7,7.88201742]
[1767965926582,13.14,138.76,138.71,0.6722158]
[1767965926778,8.21203954,138.77,138.74,7.87994248]
[1767965926779,4.37276664,138.77,138.74,7.87994248]
[1767965926974,4.37276664,138.77,138.74,6.48912617]
[1767965926975,0.22514809,138.76,138.74,6.48912617]
[1767965927600,4.37276664,138.77,138.74,6.48912617]
[1767965927899,0.12514809,138.78,138.74,6.48912617]
[1767965927900,4.49791473,138.78,138.74,6.48912617]
[1767965928403,13.14,138.79,138.74,6.48912617]
[1767965928404,17.51276664,138.79,138.75,0.72389337]
[1767965928803,4.37276664,138.78,138.75,7.93104505]
[1767965930706,17.51276664,138.79,138.75,7.93104505]
[1767965932593,4.37276664,138.77,138.73,0.72389337]
[1767965932892,4.37276664,138.78,138.75,7.20719095]
[1767965933285,4.37276664,138.78,138.74,7.93139018]
[1767965933503,4.37276664,138.77,138.74,7.93139018]
[1767965934095,4.37276664,138.78,138.74,7.93139018]
[1767965935787,4.37276664,138.78,138.75,0.71768791]
[1767965936283,4.47202551,138.76,138.71,0.71768791]
[1767965936599,4.37276664,138.74,138.71,0.71768791]
[1767965937508,4.37276664,138.74,138.71,7.92679593]
[1767965938506,4.37276664,138.73,138.7,7.2096401]
[1767965938708,4.37276664,138.72,138.7,7.2096401]
[1767965939013,4.37276664,138.73,138.7,7.92732801]
[1767965941093,4.37276664,138.73,138.7,0.71768791]
[1767965941414,4.37276664,138.73,138.7,7.92741195]
[1767965941807,4.37276664,138.74,138.7,7.92741195]
[1767965942209,4.37276664,138.74,138.71,0.71768791]
[1767965942605,4.37276664,138.74,138.7,7.92741195]
[1767965943309,0.099,138.75,138.71,0.66496727]
[1767965943513,4.37276664,138.75,138.71,0.66496727]
[1767965944715,7.33107362,138.78,138.73,5.03773391]
[1767965944917,11.70384026,138.78,138.73,5.03773391]
[1767965945308,24.7184045,138.79,138.74,12.24505217]
[1767965945510,13.14,138.79,138.75,0.66496727]
[1767965946018,13.14,138.79,138.75,5.03773391]
[1767965946602,13.14,138.79,138.75,12.24481665]
[1767965947313,13.14,138.79,138.75,7.87205001]
[1767965948220,13.14,138.79,138.76,0.66496727]
[1767965948814,13.14,138.79,138.76,7.87143968]
[1767965950918,13.14,138.79,138.76,12.24420632]
[1767965951098,13.14,138.79,138.77,0.66496727]
[1767965951296,4.49791473,138.78,138.74,7.8723852]
[1767965951501,4.37276664,138.78,138.75,7.87211147]
[1767965951701,17.51276664,138.79,138.75,7.87211147]
[1767965951901,17.61176664,138.79,138.75,7.2071442]
[1767965952102,24.81693454,138.79,138.74,7.87250344]
[1767965952305,4.37276664,138.78,138.74,7.87250344]
[1767965952508,0.099,138.79,138.74,18.68381764]
[1767965952712,0.099,138.79,138.75,7.20691372]
[1767965952913,4.47176664,138.79,138.75,7.20691372]
[1767965954426,4.37276664,138.79,138.76,0.66496727]
[1767965954728,11.57766559,138.8,138.76,0.66496727]
[1767965955130,4.37276664,138.78,138.74,7.8724481]
[1767965956034,4.47202551,138.78,138.73,7.2079475]
[1767965956204,4.37276664,138.75,138.72,0.66496727]
[1767965956922,4.37276664,138.76,138.72,7.8736677]
[1767965958434,4.37276664,138.75,138.72,7.8736677]
[1767965959032,4.37276664,138.75,138.72,0.66496727]
[1767965959336,4.37276664,138.74,138.7,7.87445485]
[1767965959741,4.37276664,138.74,138.71,0.66496727]
[1767965960535,4.37276664,138.73,138.7,0.66496727]
[1767965961117,4.37276664,138.73,138.68,7.87569795]
[1767965961422,4.37276664,138.71,138.68,7.87569795]
[1767965961628,4.37276664,138.71,138.69,0.66496727]
[1767965963142,4.37276664,138.7,138.67,7.87609464]
[1767965963326,4.37276664,138.71,138.68,0.66496727]
[1767965963519,4.37276664,138.71,138.68,7.87575162]
[1767965963939,20.34885497,138.72,138.68,0.66496727]
[1767965964115,4.37276664,138.71,138.68,0.66496727]
[1767965964912,4.37276664,138.7,138.66,22.7673588]
[1767965965441,4.37276664,138.7,138.67,0.66496727]
[1767965966018,4.37276664,138.7,138.67,7.87628101]
[1767965966936,4.37276664,138.7,138.67,0.66496727]
[1767965967328,4.37276664,138.7,138.67,7.08642034]
[1767965967529,4.37276664,138.7,138.66,26.47507066]
[1767965967830,13.14,138.72,138.67,7.21134206]
[1767965968029,4.37276664,138.72,138.67,11.5841087]
[1767965968234,4.37276664,138.72,138.67,29.61252147]
[1767965968439,4.37276664,138.72,138.68,0.66496727]
[1767965969538,4.37276664,138.72,138.68,7.87576755]
[1767965969837,4.963761,138.8,138.7,0.66496727]
[1767965970045,4.37276664,138.75,138.71,0.66496727]
[1767965970225,0.28432314,138.77,138.71,0.66496727]
[1767965970427,6.6801107,138.77,138.71,0.66496727]
[1767965970740,4.37276664,138.75,138.71,0.66496727]
[1767965970919,4.37276664,138.75,138.72,0.66496727]
[1767965971125,11.5800045,138.75,138.72,0.66496727]
[1767965971325,4.37276664,138.75,138.72,0.66496727]
[1767965971641,4.37276664,138.75,138.7,5.03773391]
[1767965971843,4.37276664,138.75,138.71,0.66496727]
[1767965972051,7.20688256,138.76,138.72,0.66496727]
[1767965972237,4.37276664,138.75,138.72,0.66496727]
[1767965972418,4.37276664,138.75,138.71,7.2091357]
[1767965972623,4.37276664,138.75,138.7,11.58233817]
[1767965972825,4.37276664,138.75,138.71,7.20915885]
[1767965973546,4.37276664,138.76,138.71,12.28897989]
[1767965973730,13.16,138.77,138.73,4.37276664]
[1767965973930,11.57873742,138.78,138.74,0.7070544]
[1767965975251,4.37276664,138.77,138.74,0.7070544]
[1767965975448,4.37276664,138.78,138.75,0.7070544]
[1767965975636,4.37276664,138.79,138.75,0.7070544]
[1767965976037,4.37276664,138.78,138.75,0.7070544]
[1767965976639,2.79521444,138.78,138.75,0.7070544]
[1767965976827,2.79521444,138.77,138.73,0.7070544]
[1767965977034,2.79521444,138.75,138.72,0.7070544]
[1767965977438,2.79521444,138.74,138.72,0.7070544]
[1767965977943,7.20721476,138.75,138.7,0.7070544]
[1767965977944,2.79521444,138.73,138.7,0.7070544]
[1767965978736,2.79521444,138.73,138.69,7.21005874]
[1767965978737,2.79521444,138.72,138.69,0.7070544]
[1767965979458,2.79521444,138.73,138.69,7.91731328]
[1767965979955,20.36800077,138.74,138.69,0.7070544]
[1767965980158,2.79521444,138.72,138.69,7.91729891]
[1767965980377,0.28432314,138.76,138.69,0.7070544]
[1767965980653,15.95521444,138.77,138.73,0.7070544]
[1767965980853,2.79521444,138.76,138.73,0.7070544]
[1767965981158,2.79521444,138.76,138.71,3.50226884]
[1767965981349,13.16,138.77,138.71,3.50226884]
[1767965981350,15.95521444,138.77,138.71,3.50226884]
[1767965981549,23.1613855,138.77,138.73,0.7070544]
[1767965982736,13.16,138.77,138.74,0.7070544]
[1767965983959,13.16,138.77,138.73,10.0032936]
[1767965984534,20.36617649,138.77,138.73,2.79521444]
[1767965984951,13.16,138.77,138.73,10.00344733]
[1767965985656,15.95521444,138.77,138.72,10.00398029]
[1767965985861,23.1615206,138.77,138.72,10.00398029]
[1767965986551,2.79521444,138.74,138.7,7.20949732]
[1767965987951,2.79521444,138.73,138.69,7.21032518]
[1767965988865,2.79521444,138.73,138.7,0.72398494]
[1767965989256,2.79521444,138.72,138.69,0.72398494]
[1767965989964,13.14,138.74,138.68,0.72398494]
[1767965989965,2.79521444,138.71,138.68,0.72398494]
[1767965990549,7.20848025,138.73,138.68,0.72398494]
[1767965990758,2.79521444,138.71,138.68,0.72398494]
[1767965991164,2.79521444,138.71,138.68,7.93479053]
[1767965992345,2.79521444,138.71,138.68,0.72398494]
[1767965993665,7.20848025,138.73,138.69,0.68687013]
[1767965993666,2.79521444,138.72,138.69,0.68687013]
[1767965993858,2.79521444,138.71,138.69,0.68687013]
[1767965995963,2.79521444,138.71,138.67,7.89815655]
[1767965996366,2.79521444,138.71,138.69,0.68687013]
[1767965998143,7.20841593,138.73,138.69,0.68687013]
[1767965998367,2.79521444,138.71,138.69,0.68687013]
[1767965999473,7.20849127,138.73,138.69,0.68687013]